Cogmind - Beta 16 @@@ ROGUE MODE // 2025.11.06 @ 22:08:51 Player: Blanco! Result: Destroyed by Y-45 Defender with Beam Rifle Performance ------------- Evolutions (1) 500 Regions Visited (2) 400 Robots Destroyed (17) 85 Value Destroyed (384) 384 Prototype IDs (1) 20 Alien Tech Used (0) 0 Bonus (0) 0 TOTAL SCORE: 1389 Bonus ------- None Cogmind --------- Core Integrity 0/400 Matter 275/300 Energy 265/265 System Corruption 0% Temperature Cool (9) Movement Core (1500) Ox29 Location -9/Materials Parts ------- > --- POWER (1) -------- Improved Ion Engine > --- PROPULSION (4) --- (None) > --- UTILITY (2) ------ Huge Storage Unit ECM Suite > --- WEAPON (2) ------- (None) > --- INVENTORY (25) --- Light Ion Engine Light Ion Engine Aluminum Leg Aluminum Leg Medium Storage Unit Hardened Light Armor Plating Heavy Assault Rifle Peak State ------------ > --- POWER ------------ Ion Engine > --- PROPULSION ------- Compact Wheel Compact Wheel Armored Wheel > --- UTILITY ---------- Huge Storage Unit ECM Suite > --- WEAPON ----------- Improved Medium Laser Light Cannon > --- INVENTORY -------- Ion Engine Light Ion Engine Light Ion Engine Improved Ion Engine Aluminum Leg Aluminum Leg Medium Storage Unit Hardened Light Armor Plating Beam Cannon Heavy Assault Rifle [Rating: 12] Favorites ----------- Power Ion Engine Engine Ion Engine Propulsion Compact Wheel Wheel Compact Wheel Hover Unit Hover Unit Flight Unit Flight Unit Utility ECM Suite Device ECM Suite Storage Huge Storage Unit Protection Light Armor Plating Weapon Assault Rifle Energy Gun Improved Medium Laser Energy Cannon Beam Cannon Ballistic Gun Assault Rifle Ballistic Cannon Light Cannon Launcher Grenade Launcher Build | -11 -10 -9 ------- Run | Yrd Mat Mat Slots Evolved 2 | . . 2 Power . | . . . Propulsion 2 | . . 2 Utility . | . . . Weapon . | . . . Parts Attached 26 | 6 6 14 Power 4 | 1 . 3 Engine 4 | 1 . 3 Core . | . . . Reactor . | . . . Propulsion 10 | 2 1 7 Treads . | . . . Leg . | . . . Wheel 6 | 2 1 3 Hover 1 | . . 1 Flight 3 | . . 3 Utility 5 | 1 3 1 Device 1 | . 1 . Storage 3 | 1 1 1 Processor . | . . . Hackware . | . . . Protection 1 | . 1 . Artifact . | . . . Weapon 7 | 2 2 3 Energy Gun 2 | 1 . 1 Energy Cannon 2 | . . 2 Ballistic Gun 1 | 1 . . Ballistic Cannon 1 | . 1 . Launcher 1 | . 1 . Special Weapon . | . . . Impact Weapon . | . . . Slashing Weapon . | . . . Piercing Weapon . | . . . Special Melee Weapon . | . . . Unidentified Prototypes 1 | . . 1 Parts Lost 19 | . 3 16 Power 3 | . . 3 Propulsion 9 | . 1 8 Utility 1 | . 1 . Weapon 6 | . 1 5 Highest Loss Streak 15 | . 3 15 To Critical Strikes 1 | . . 1 Average Backups 7 | 3 7 9 Power 2 | . 1 3 Propulsion 2 | 2 4 2 Utility 1 | . . 1 Weapon 1 | . 1 1 Tool/Special . | . . . Unused Backups 8 | . 3 5 Power 2 | . 1 1 Propulsion 4 | . 2 2 Utility 1 | . . 1 Weapon 1 | . . 1 Tool/Special . | . . . Average Slot Usage (%) 91 | . 93 89 Engine 11 | . 14 10 Wheel 32 | . 27 34 Flight 1 | . . 1 Device 8 | . 2 11 Storage 12 | . 14 11 Protection 2 | . 6 . Energy Gun 2 | . 2 2 Energy Cannon 3 | . . 5 Ballistic Gun 7 | . 14 4 Ballistic Cannon 6 | . 2 8 Launcher 2 | . 8 . Peak Build Rating 12 | 6 8 12 Average Rating 8 | 4 6 10 On Entrance 4 | . 6 7 Avg Prop Armor Cover (%) 7 | . . 7 Naked Turns . | . . . Heaviest Build 93 | 13 23 93 Greatest Support 54 | 26 26 54 Greatest Overweight (x) 29 | . . 29 Average Overweight (x) . | . . 1 Largest Inventory Capacity 25 | 8 10 25 Average Capacity 16 | 7 9 21 Most Carried 14 | 5 10 14 Average Carried 8 | 3 7 9 Final Capacity 25 | 8 10 25 Final Carried 9 | 5 9 7 Class Distribution -------------------- 100% | Mutant Dominant Class ---------------- Mutant | -10/Materials Mutant | -9/Materials Resources | -11 -10 -9 ----------- Run | Yrd Mat Mat Matter Collected 438 | 193 43 202 Remotely . | . . . Salvage Created 357 | . 180 177 Parts 30 | . 16 14 Haulers Intercepted . | . . . Recyclers Shooed 1 | . 1 . Parts Field Recycled . | . . . Retrieved Matter . | . . . Parts Self-Destructed . | . . . Prevented . | . . . Parts Restored . | . . . Kills | -11 -10 -9 ------- Run | Yrd Mat Mat Combat Hostiles Destroyed 12 | . 7 5 Guns 2 | . . 2 Cannons 4 | . 1 3 AOE 6 | . 6 . Classes Destroyed 6 | . 5 1 Builder 2 | . 2 . Tunneler 1 | . 1 . Watcher 2 | . 1 1 Swarmer 5 | . 3 2 Grunt 6 | . 4 2 Sentry 1 | . . 1 Best Kill Streak 9 | . 9 4 Combat Bots Only 7 | . 7 3 Max Kills in Single Turn 3 | . 3 1 Gunslinging . | . . . Exploded 3 | . 3 . Melee . | . . . Uniques/NPCs Destroyed . | . . . Combat | -11 -10 -9 -------- Run | Yrd Mat Mat Hostile Shots Fired 201 | . 27 174 Missed 62 | . 6 56 Hits 139 | . 21 118 Projectile 139 | . 21 118 Critical Strikes 6 | . 1 5 Damage Taken 1895 | . 415 1480 Core 435 | . 33 402 Absorbed by Shields . | . . . Core Remaining (%) 93 | 100 86 . Volleys Fired 20 | . 6 14 Largest 2 | . 2 2 Hottest 116 | . 50 116 Shots Fired 40 | . 12 28 Gun 12 | . 6 6 Cannon 23 | . 1 22 Launcher 5 | . 5 . Special . | . . . Kinetic 15 | . 7 8 Thermal 20 | . . 20 Explosive 5 | . 5 . Electromagnetic . | . . . Robot Hit Streak 5 | . 5 5 Robot Miss Streak 6 | . 2 6 Penetration Max . | . . . Secondary Targets . | . . . Shots Hit Robots 22 | . 8 14 Core Hits 24 | . 15 9 Critical Kills . | . . . Critical Parts Destroyed . | . . . Critical Strikes 1 | . . 1 Burn 1 | . . 1 Melee Attacks . | . . . Impact . | . . . Slashing . | . . . Piercing . | . . . Sneak Attacks . | . . . Combat Hostiles . | . . . Follow-up Attacks . | . . . Damage Inflicted 998 | . 721 277 Guns 121 | . 36 85 Cannons 207 | . 15 192 Explosions 657 | . 657 . Melee . | . . . Ramming 13 | . 13 . Kinetic 104 | . 51 53 Thermal 400 | . 176 224 Explosive 481 | . 481 . Electromagnetic . | . . . Impact . | . . . Slashing . | . . . Piercing . | . . . Highest Corruption . | . . . Average Corruption . | . . . Corruption Purged . | . . . Corruption Blocked . | . . . Overload Shots . | . . . Overflow Damage 45 | . 45 . Projectiles . | . . . Explosions 45 | . 45 . Melee . | . . . Knockbacks 1 | . 1 . Impact 1 | . 1 . Kinetic . | . . . Secondary . | . . . Self-Inflicted Damage 162 | . 162 . Shots 3 | . 3 . Rammed 3 | . 3 . Targets Rammed 3 | . 3 . Kicked . | . . . Crushed . | . . . Highest Temperature 348 | . 54 348 Average Temperature 96 | . 30 110 Received Heat Transfer 780 | . 156 624 Siege Activations . | . . . Martial Activations . | . . . Shielding Activations . | . . . Robots Disrupted . | . . . Combat Hostiles . | . . . Robots Corrupted . | . . . Combat Hostiles . | . . . Parts Fried . | . . . Impact Corruptions . | . . . Robots Melted . | . . . Combat Hostiles . | . . . Parts Melted . | . . . Heat Transferred 705 | . 150 555 Parts Sabotaged . | . . . Parts Stolen . | . . . Parts Stripped . | . . . Power Chain Reactions . | . . . Alert | -11 -10 -9 ------- Run | Yrd Mat Mat Maximum Alert Level . | . . . Low Security (%) 100 | 100 100 100 Level 1 . | . . . Level 2 . | . . . Level 3 . | . . . Level 4 . | . . . Level 5 . | . . . High Security . | . . . Max Security . | . . . Peak Influence 194 | . 194 68 Initial 68 | . . 68 Average 31 | . 53 24 Influence Increases 381 | . 254 127 Destroy 0b10 Robot/C 240 | . 140 100 Destroy 0b10 Robot/NC 25 | . 20 5 Destroy Leader 54 | . 32 22 Disable Machine 15 | . 15 . Destroy Structure 47 | . 47 . Influence Decreases 381 | . 90 291 Entered New Map 96 | . . 96 Time Decay 198 | . 60 138 Lost Part 87 | . 30 57 Squads Dispatched 2 | . 1 1 Investigation . | . . . Extermination . | . . . Reinforcement 2 | . 1 1 Assault . | . . . Garrison . | . . . Intercept . | . . . Searches Triggered . | . . . Construction Impeded . | . . . Haulers Reinforced . | . . . Active Scanning Responses . | . . . Cargo Convoy Interrupts . | . . . Stealth | -11 -10 -9 --------- Run | Yrd Mat Mat Distress Signals 2 | . . 2 Communications Jammed . | . . . Distress Signals . | . . . Times Spotted 30 | . 13 17 Peak Tracking Total 7 | . 7 6 Tactical Retreats 5 | . 1 4 ECM-based Alert Blocks 9 | . 2 7 Traps | -11 -10 -9 ------- Run | Yrd Mat Mat Traps Triggered . | . . . Indirectly . | . . . Trap Hack Attempts . | . . . Triggered . | . . . Disarmed . | . . . Reprogrammed . | . . . Reused . | . . . Traps Extracted . | . . . Installed . | . . . Triggered . | . . . Machines | -11 -10 -9 ---------- Run | Yrd Mat Mat Machines Disabled 1 | . 1 . Max in Single Turn 1 | . 1 . Machines Repaired . | . . . Machines Dismantled . | . . . Machines Sabotaged . | . . . Overloaded Fab Kills . | . . . Hacking | -11 -10 -9 --------- Run | Yrd Mat Mat Machines Accessed . | . . . Terminals . | . . . Fabricators . | . . . Repair Stations . | . . . Recycling Units . | . . . Scanalyzers . | . . . Garrison Access . | . . . Total Hacks . | . . . Successful . | . . . Failed . | . . . Catastrophic . | . . . Database Lockouts . | . . . Manual . | . . . Terminals . | . . . Fabricators . | . . . Repair Stations . | . . . Recycling Units . | . . . Scanalyzers . | . . . Garrison Access . | . . . Terminal Hacks . | . . . Fabricator Hacks . | . . . Repair Station Hacks . | . . . Recycling Unit Hacks . | . . . Scanalyzer . | . . . Garrison Access Hacks . | . . . Unauthorized Hacks . | . . . Terminals . | . . . Fabricators . | . . . Repair Stations . | . . . Recycling Units . | . . . Scanalyzers . | . . . Garrison Access . | . . . Data Cores Recovered . | . . . Used . | . . . Hacking Detections . | . . . Full Trace Events . | . . . Feedback Events . | . . . Feedback Blocked . | . . . Robot Schematics Acquired . | . . . Robots Built . | . . . Authchips . | . . . Time . | . . . Total Robot Build Rating . | . . . Part Schematics Acquired . | . . . Parts Built . | . . . Authchips . | . . . Time . | . . . Total Part Build Rating . | . . . Part Studies Acquired . | . . . Parts Repaired . | . . . Time . | . . . Parts Recycled . | . . . Recycled Matter . | . . . Retrieved Matter . | . . . Retrieved Components . | . . . Parts Scanalyzed . | . . . Part Schematics Acquired . | . . . Parts Damaged . | . . . Bothacking | -11 -10 -9 ------------ Run | Yrd Mat Mat Used RIF Installer . | . . . Robots Hacked . | . . . Non-combat . | . . . Combat . | . . . Robot Hacks Applied . | . . . Relay Couplers Released . | . . . Fabnet Peak Effective % . | . . . Robots Rewired . | . . . Allies Hacked . | . . . Hacks Repelled . | . . . Allies | -11 -10 -9 -------- Run | Yrd Mat Mat Total Allies . | . . . Largest Group . | . . . Highest-Rated Group . | . . . Highest-Rated Ally . | . . . Total Orders . | . . . Ally Attacks . | . . . Total Damage . | . . . Kills . | . . . Allies Corrupted . | . . . Allies Melted . | . . . Intel | -11 -10 -9 ------- Run | Yrd Mat Mat Active Infowar (turns) 458 | . 47 411 ECM 458 | . 47 411 Robot Analysis Total . | . . . Derelict Logs Recovered . | . . . Drone Launches . | . . . Drone Recoveries . | . . . Exploration | -11 -10 -9 ------------- Run | Yrd Mat Mat Turns Passed 679 | 65 203 411 Spaces Moved 516 | 55 178 283 Core 4 | 3 . 1 Treads . | . . . Legs . | . . . Wheels 508 | 52 178 278 Hover . | . . . Flight 4 | . . 4 Fastest Speed 50 | 50 90 90 Average Speed 109 | 87 90 125 Slowest Speed 1880 | 90 90 1880 Overloaded Moves . | . . . Propulsion Burnouts . | . . . Robots Hopped . | . . . Potential Cave-ins . | . . . Cave-ins Triggered . | . . . Exploration Rate (%) 17 | 4 27 22 Regions Visited 2 Branch Regions . Pre-discovered Areas . | . . . Known Exits Taken . | . . . Unknown Exits Taken 2 | 1 1 . Scrap Searched . | . . . Spaces Dug . | . . . Terrain Destroyed 50 | . 50 . Melee . | . . . Projectile . | . . . AOE 50 | . 50 . Terrain Rammed . | . . . Walls Destroyed . | . . . Machines Disabled . | . . . Actions | -11 -10 -9 --------- Run | Yrd Mat Mat Total 604 | 71 210 323 Wait . | . . . Move 514 | 54 177 283 Hop . | . . . Pick Up 35 | 11 13 11 Fast Attach . | . . . Attach 22 | 6 4 12 Detach . | . . . Swap 4 | . 2 2 Drop 6 | . 5 1 Fire 20 | . 6 14 Melee . | . . . Ram 3 | . 3 . Kick . | . . . Crush . | . . . Escape Stasis . | . . . Rewire . | . . . Trap . | . . . Miscellaneous . | . . . Route ------- -11/Scrapyard -10/Materials -9/Materials History --------- Turn | Location | Event 13 | -11/Scrapyard | Discovered new exit (range 16) 66 | -11/Scrapyard | Entered Materials 244 | -10/Materials | Destroyed 7 combat bots 244 | -10/Materials | Discovered new exit (range 4) 252 | -10/Materials | Lost 3 parts (1n1u1w) 269 | -10/Materials | Entered another Materials area 269 | -9/Materials | Evolved 2 slots: Propulsion x2 303 | -9/Materials | Build established: Mutant 649 | -9/Materials | Core integrity fell below 50% 673 | -9/Materials | Core integrity fell below 20% 680 | -9/Materials | Destroyed by Y-45 Defender with Beam Rifle Last Messages --------------- 00609_ Com. Wheel destroyed. 00611_ G-34 Mercenary destroyed. 00617_ Arm. Wheel destroyed. 00618_ Lgt. Ion Engine destroyed. 00621_ Com. Wheel destroyed. 00621_ K-01 Serf collects debris. 00624_ Beam Cannon destroyed. 00624_ Critical hit (Burn: +37). 00624_ K-01 Serf collects debris. 00629_ K-01 Serf destroyed. 00629_ K-01 Serf collects debris. 00636_ Hover Unit destroyed. 00638_ K-01 Serf collects debris. 00639_ Ion Engine destroyed. 00642_ K-01 Serf collects debris. 00657_ Flight Unit destroyed. 00659_ Imp. Medium Laser destroyed. 00660_ Flight Unit destroyed. 00662_ K-01 Serf collects debris. 00671_ Flight Unit destroyed. Map ----- +----------------------------------------------------+ | ??????????????????????????????????????????? | | ??????????????????????????????????????????? | | ???????????????????????????????#########??? | | ????????????????????????#####??# #??? | | ???????????????????????? ## ##### #??? | | ?????????????????????# """ """## #???# #??? | | ?????????????????????# """ R"## #???# #??? | | ?????????????????????# """ """## #?###+#### | | ?????????????????????# ## #?# # | | ?????????????????????# """ ## #?# """# | | ?????########????????# """ ## #?# """# | | ?????# #????????# """ ## #?# """# | | ?????# """ #######??# ## #?# # | | ?????# """ !# ########+##### #?# # | | ?????# """ # #### #?######## | | ?????# + #????????? | | ?????# """ # ############### | | ?????# """ # ####### #??# # # | | ?????# """ ### ###?????# #??# # # | | ?????# #?#+######### #??# # """ # | | ?????# " " #?# # #### + """ # | | ?????# "R" #?# # # """ # | | ?????# """ #?# + #= # | | ???? # #?# # #######? | | ???? ####?# ??# # ###########???? | | ??## ###???#??# #@ # #???? | | ?? #??????# # # #???? | | ?? #??????# # # #???? | | ?# ???????########### t #! #???? | | ?? ?????????????????# + #???? | | ?? ?????????????????# # #???? | | ??# #?????????????????# a# #???? | | ??# #?????????????????# # #???? | | ??# #?????????????????#Y!*###########???? | | ??# #?????????????????#=g%#?????????????? | | ### #?????????????????#!=[#?????????????? | | ##+################[[%#?????????????? | | +![ /##%[=##????????????? | | " #???# #!= #????????????? | | ### #???# !# #????????????? | | # ##### / +????????????? | | + / # #????????????? | | ##+######### # #????????????? | | ""# #???# ! #######????????????? | | ""# #???# #??????????????????? | | ""# #???###########??????????????????? | | # #????????????????????????????????? | | ### #????????????????????????????????? | | ??# #????????????????????????????????? | | ??########????????????????????????????????? | +----------------------------------------------------+ Best States ------------- Heat Dissipation 28 Energy Generation 12 Energy Capacity 265 Matter Stores 297 Matter Capacity 300 Sight Range 16 Terrain Scan Density 10 ECM Strength 1 Armor Coverage 150 Evasion (%) 42 Item Schematics ----------------- None Robot Schematics ------------------ None Fabricated ------------ Nothing Repaired ---------- Nothing Studied --------- None Alien Tech Used ----------------- None Achievements -------------- Overwhelming Challenges ------------ None Game ------ Seed DisintegrationDeflectorTube Manual? 0 Play Time 00:08:42 Cumulative 16.0 hours Start 2025.11.06 @ 22:00:40 End 2025.11.06 @ 22:08:51 Sessions 1 Manual Loads 0 Difficulty Rogue Special Mode None Game No. 25 Rogue 25 Adventurer 0 Explorer 0 Win Type - Total 0 Types 0/0/0/0/0/0/0/0/0/0 Lore% 8 Gallery% 15 Achievement% 9 Wizard Run 0 Options --------- Layout 0 ASCII 0 Keyboard 0 Movement Arrows Keybinds 0 Fullscreen 2 Font 18/SmallcapsGlow Map View 38x25 Zoom Use 100% Tactical HUD 1 Map Filters NONE Filters NONE Steam 1 RUN: 65b0f24c-bd5c-4a53-b076-16731bd7ecde